Cogmind - Beta 14 @@@ ROGUE MODE // 2024.09.10 @ 20:00:49 Player: Dull Result: Destroyed by G-34 Mercenary with Small Laser Performance ------------- Evolutions (0) 0 Regions Visited (2) 400 Robots Destroyed (49) 245 Value Destroyed (935) 935 Prototype IDs (2) 40 Alien Tech Used (0) 0 Bonus (0) 0 TOTAL SCORE: 1620 Bonus ------- None Cogmind --------- Core Integrity 0/250 Matter 268/300 Energy 250/250 System Corruption 2% Temperature Cool (6) Movement Treading (240) Ox1 Location -10/Subcaves Parts ------- > --- POWER (1) -------- Ion Engine > --- PROPULSION (2) --- Improved Treads Improved Treads > --- UTILITY (2) ------ High-capacity Storage Unit Improved Terrain Scanner > --- WEAPON (2) ------- Assault Rifle Assault Rifle > --- INVENTORY (20) --- Ion Engine Ion Engine Light Nuclear Core Light Treads Improved Treads Improved Treads Improved Treads Improved Treads Terrain Scan Processor Terrain Scan Processor ECM Suite ECM Suite Assault Rifle Assault Rifle Assault Rifle Autogun Light Cannon Peak State ------------ > --- POWER ------------ Ion Engine > --- PROPULSION ------- Improved Treads Improved Treads > --- UTILITY ---------- High-capacity Storage Unit Improved Terrain Scanner > --- WEAPON ----------- Autogun Autogun > --- INVENTORY -------- Ion Engine Light Treads Light Treads Improved Treads Improved Treads Improved Treads Improved Treads Improved Treads Improved Treads Terrain Scan Processor Terrain Scan Processor ECM Suite ECM Suite Assault Rifle Assault Rifle Assault Rifle Assault Rifle Assault Rifle Autogun Autogun [Rating: 16] Favorites ----------- Power Ion Engine Engine Ion Engine Propulsion Improved Treads Treads Improved Treads Leg Aluminum Leg Utility Improved Terrain Scanner Device Improved Terrain Scanner Storage High-capacity Storage Unit Weapon Autogun Ballistic Gun Autogun Build | -11 -10 -10 ------- Run | Yrd Mat Sub Slots Evolved . | . . . Power . | . . . Propulsion . | . . . Utility . | . . . Weapon . | . . . Parts Attached 26 | 4 18 4 Power 6 | . 6 . Engine 6 | . 6 . Core . | . . . Reactor . | . . . Propulsion 9 | 3 4 2 Treads 9 | 3 4 2 Leg . | . . . Wheel . | . . . Hover . | . . . Flight . | . . . Utility 5 | 1 4 . Device 1 | 1 . . Storage 4 | . 4 . Processor . | . . . Hackware . | . . . Protection . | . . . Artifact . | . . . Weapon 6 | . 4 2 Energy Gun . | . . . Energy Cannon . | . . . Ballistic Gun 6 | . 4 2 Ballistic Cannon . | . . . Launcher . | . . . Special Weapon . | . . . Impact Weapon . | . . . Slashing Weapon . | . . . Piercing Weapon . | . . . Special Melee Weapon . | . . . Unidentified Prototypes . | . . . Parts Lost 4 | . . 4 Power . | . . . Propulsion 2 | . . 2 Utility . | . . . Weapon 2 | . . 2 Highest Loss Streak 2 | . . 2 To Critical Strikes . | . . . Average Slot Usage (%) 99 | . 99 99 Engine 14 | . 14 14 Treads 27 | . 28 27 Device 14 | . 14 14 Storage 14 | . 14 14 Ballistic Gun 27 | . 27 27 Peak Build Rating 16 | 9 16 15 Average Rating 14 | 8 14 14 On Entrance 10 | 6 9 15 Naked Turns . | . . . Heaviest Build 52 | 13 52 52 Greatest Support 46 | 40 46 46 Greatest Overweight (x) 1 | . 1 1 Average Overweight (x) . | . . 1 Largest Inventory Capacity 20 | 8 20 20 Average Capacity 15 | 8 16 20 Most Carried 20 | 7 20 20 Average Carried 14 | 5 15 19 Final Capacity 20 | 8 20 20 Final Carried 20 | 7 20 17 Class Distribution -------------------- 100% | Mutant Dominant Class ---------------- Mutant | -10/Materials Mutant | -10/Subcaves Resources | -11 -10 -10 ----------- Run | Yrd Mat Sub Matter Collected 1571 | 342 1016 213 Remotely . | . . . Salvage Created 1626 | 248 1176 202 Parts 111 | 20 81 10 Haulers Intercepted 1 | . 1 . Recyclers Shooed . | . . . Parts Field Recycled . | . . . Retrieved Matter . | . . . Parts Self-Destructed 8 | . . 8 Prevented . | . . . Kills | -11 -10 -10 ------- Run | Yrd Mat Sub Combat Hostiles Destroyed 20 | . 16 4 Guns 20 | . 16 4 Classes Destroyed 8 | 3 4 1 Worker 9 | 2 7 . Builder 6 | . 6 . Tunneler 7 | 7 . . Hauler 1 | . 1 . Recycler 3 | 1 2 . Watcher 3 | . 3 . Grunt 19 | . 16 3 Sentry 1 | . . 1 Best Kill Streak 5 | 5 5 2 Combat Bots Only 3 | . 3 2 Max Kills in Single Turn 1 | 1 1 1 Gunslinging . | . . . Exploded . | . . . Melee . | . . . Uniques/NPCs Destroyed . | . . . Combat | -11 -10 -10 -------- Run | Yrd Mat Sub Hostile Shots Fired 141 | . 72 69 Missed 36 | . 16 20 Damage Taken 1437 | . 781 656 Core 250 | . 95 155 Absorbed by Shields . | . . . Regen/Repaired (Parts) 103 | . 103 . Core Remaining (%) 100 | 100 . . Volleys Fired 152 | 17 109 26 Largest 2 | 2 2 2 Hottest 46 | 40 46 46 Shots Fired 301 | 34 218 49 Gun 301 | 34 218 49 Cannon . | . . . Launcher . | . . . Special . | . . . Kinetic 301 | 34 218 49 Thermal . | . . . Explosive . | . . . Electromagnetic . | . . . Robot Hit Streak 9 | 5 9 8 Robot Miss Streak 5 | 3 5 3 Penetration Max . | . . . Secondary Targets 4 | . 4 . Max Gunslinging Chain 1 | . 1 . Shots Hit Robots 189 | 19 134 36 Core Hits 66 | 11 45 10 Critical Kills 1 | . 1 . Critical Parts Destroyed 2 | 1 1 . Critical Strikes 3 | 1 2 . Destroy 3 | 1 2 . Melee Attacks . | . . . Impact . | . . . Slashing . | . . . Piercing . | . . . Sneak Attacks . | . . . Combat Hostiles . | . . . Follow-up Attacks . | . . . Damage Inflicted 2836 | 249 2069 518 Guns 2836 | 249 2069 518 Cannons . | . . . Explosions . | . . . Melee . | . . . Ramming . | . . . Kinetic 2836 | 249 2069 518 Thermal . | . . . Explosive . | . . . Electromagnetic . | . . . Impact . | . . . Slashing . | . . . Piercing . | . . . Highest Corruption 2 | . 2 2 Average Corruption 2 | . 2 2 Corruption Purged . | . . . Corruption Blocked . | . . . Effects 8 | . 3 5 Message Errors 3 | . 3 . Matter Fused 1 | . . 1 Heat Flow Errors 1 | . . 1 Energy Discharges 1 | . . 1 Data Loss (minor) 1 | . . 1 Weapon Failures 1 | . . 1 Overload Shots . | . . . Overflow Damage . | . . . Projectiles . | . . . Explosions . | . . . Melee . | . . . Knockbacks . | . . . Impact . | . . . Kinetic . | . . . Secondary . | . . . Self-Inflicted Damage . | . . . Shots . | . . . Rammed . | . . . Targets Rammed . | . . . Kicked . | . . . Crushed . | . . . Highest Temperature 141 | . 99 141 Average Temperature 16 | . 15 82 Received Heat Transfer 756 | . 417 339 Siege Activations . | . . . Robots Corrupted . | . . . Combat Hostiles . | . . . Parts Fried . | . . . Impact Corruptions . | . . . Robots Melted . | . . . Combat Hostiles . | . . . Parts Melted . | . . . Heat Transferred . | . . . Parts Sabotaged . | . . . Parts Stolen . | . . . Parts Stripped . | . . . Power Chain Reactions . | . . . Alert | -11 -10 -10 ------- Run | Yrd Mat Sub Peak Influence 340 | 50 340 . Initial 32 | . 32 . Average 113 | 20 121 . Maximum Alert Level 1 | . 1 . Low Security (%) 85 | 100 83 . Level 1 14 | . 16 . Level 2 . | . . . Level 3 . | . . . Level 4 . | . . . Level 5 . | . . . High Security . | . . . Max Security . | . . . Squads Dispatched 3 | . 3 . Investigation 1 | . 1 . Extermination . | . . . Reinforcement 2 | . 2 . Assault . | . . . Garrison . | . . . Intercept . | . . . Searches Triggered . | . . . Construction Impeded . | . . . Haulers Reinforced . | . . . Active Scanning Responses . | . . . Cargo Convoy Interrupts . | . . . Stealth | -11 -10 -10 --------- Run | Yrd Mat Sub Distress Signals 1 | . 1 . Communications Jammed . | . . . Distress Signals . | . . . Times Spotted 45 | . 32 13 Peak Tracking Total 3 | . 3 3 Tactical Retreats 7 | . 1 6 Traps | -11 -10 -10 ------- Run | Yrd Mat Sub Traps Triggered 4 | . 4 . Indirectly . | . . . Trap Hack Attempts . | . . . Triggered . | . . . Disarmed . | . . . Reprogrammed . | . . . Reused . | . . . Traps Extracted . | . . . Installed . | . . . Triggered . | . . . Machines | -11 -10 -10 ---------- Run | Yrd Mat Sub Machines Disabled 1 | . 1 . Max in Single Turn 1 | . 1 . Machines Repaired . | . . . Machines Dismantled . | . . . Machines Sabotaged . | . . . Overloaded Fab Kills . | . . . Hacking | -11 -10 -10 --------- Run | Yrd Mat Sub Machines Accessed 7 | . 7 . Terminals 6 | . 6 . Fabricators . | . . . Repair Stations 1 | . 1 . Recycling Units . | . . . Scanalyzers . | . . . Garrison Access . | . . . Total Hacks 17 | . 17 . Successful 9 | . 9 . Failed 8 | . 8 . Catastrophic 3 | . 3 . Database Lockouts . | . . . Manual 3 | . 3 . Terminals 15 | . 15 . Fabricators . | . . . Repair Stations 2 | . 2 . Recycling Units . | . . . Scanalyzers . | . . . Garrison Access . | . . . Terminal Hacks 6 | . 6 . Part Schematic 1 | . 1 . Prototype ID Bank 1 | . 1 . Alert Level 1 | . 1 . Unreport Threat 1 | . 1 . Locate Traps 1 | . 1 . Security Status 1 | . 1 . Fabricator Hacks . | . . . Repair Station Hacks 2 | . 2 . Scan Component 1 | . 1 . Repair 1 | . 1 . Recycling Unit Hacks . | . . . Scanalyzer . | . . . Garrison Access Hacks . | . . . Unauthorized Hacks 1 | . 1 . Terminals 1 | . 1 . Botnet 1 | . 1 . Fabricators . | . . . Repair Stations . | . . . Recycling Units . | . . . Scanalyzers . | . . . Garrison Access . | . . . Data Cores Recovered . | . . . Used . | . . . Hacking Detections 5 | . 5 . Full Trace Events 2 | . 2 . Feedback Events . | . . . Feedback Blocked . | . . . Robot Schematics Acquired . | . . . Robots Built . | . . . Authchips . | . . . Time . | . . . Total Robot Build Rating . | . . . Part Schematics Acquired 1 | . 1 . Parts Built . | . . . Authchips . | . . . Time . | . . . Total Part Build Rating . | . . . Parts Repaired 1 | . 1 . Time 32 | . 32 . Parts Recycled . | . . . Recycled Matter . | . . . Retrieved Matter . | . . . Retrieved Components . | . . . Parts Scanalyzed . | . . . Part Schematics Acquired . | . . . Parts Damaged . | . . . Bothacking | -11 -10 -10 ------------ Run | Yrd Mat Sub Used RIF Installer . | . . . Robots Hacked . | . . . Non-combat . | . . . Combat . | . . . Robot Hacks Applied . | . . . Relay Couplers Released . | . . . Fabnet Peak Effective % . | . . . Robots Rewired . | . . . Allies Hacked . | . . . Hacks Repelled . | . . . Allies | -11 -10 -10 -------- Run | Yrd Mat Sub Total Allies . | . . . Largest Group . | . . . Highest-Rated Group . | . . . Highest-Rated Ally . | . . . Total Orders . | . . . Ally Attacks . | . . . Total Damage . | . . . Kills . | . . . Allies Corrupted . | . . . Allies Melted . | . . . Intel | -11 -10 -10 ------- Run | Yrd Mat Sub Robot Analysis Total . | . . . Derelict Logs Recovered . | . . . Drone Launches . | . . . Drone Recoveries . | . . . Exploration | -11 -10 -10 ------------- Run | Yrd Mat Sub Turns Passed 3350 | 243 2771 336 Spaces Moved 1333 | 118 1110 105 Core . | . . . Treads 1319 | 104 1110 105 Legs 14 | 14 . . Wheels . | . . . Hover . | . . . Flight . | . . . Fastest Speed 120 | 120 160 240 Average Speed 206 | 155 209 240 Slowest Speed 240 | 160 240 240 Overloaded Moves . | . . . Propulsion Burnouts . | . . . Robots Hopped . | . . . Cave-ins Triggered . | . . . Exploration Rate (%) 39 | 6 100 12 Regions Visited 2 Branch Regions 1 Pre-discovered Areas . | . . . Known Exits Taken . | . . . Unknown Exits Taken 2 | 1 1 . Scrap Searched . | . . . Spaces Dug . | . . . Terrain Destroyed . | . . . Melee . | . . . Projectile . | . . . AOE . | . . . Terrain Rammed . | . . . Walls Destroyed . | . . . Machines Disabled . | . . . Actions | -11 -10 -10 --------- Run | Yrd Mat Sub Total 1682 | 143 1393 146 Wait 123 | . 113 10 Move 1331 | 117 1109 105 Hop . | . . . Pick Up 25 | 3 21 1 Fast Attach 4 | 1 3 . Attach 4 | . . 4 Detach . | . . . Swap 18 | 3 15 . Drop 25 | 2 23 . Fire 152 | 17 109 26 Melee . | . . . Ram . | . . . Kick . | . . . Crush . | . . . Escape Stasis . | . . . Rewire . | . . . Trap . | . . . Miscellaneous . | . . . Route ------- -11/Scrapyard -10/Materials (discovered 6 exits: [*Mat x3] / [*Min x2] / [*Sub]) -10/Subcaves (discovered 1 exit: [*Mat]) History --------- Turn | Location | Event 1 | -11/Scrapyard | Discovered new exit (range 3) 244 | -11/Scrapyard | Entered Materials 305 | -10/Materials | Build established: Mutant 1013 | -10/Materials | Discovered new exit (range 6) 1148 | -10/Materials | Discovered new exit (range 16) 1198 | -10/Materials | Repaired Autogun 1402 | -10/Materials | Discovered new exit (range 14) 1794 | -10/Materials | Discovered new exit (range 16) 2088 | -10/Materials | Discovered new exit (range 15) 2476 | -10/Materials | Discovered new exit (range 16) 3015 | -10/Materials | Entered Subcaves 3057 | -10/Subcaves | Discovered new exit (range 15) 3120 | -10/Subcaves | Core integrity fell below 50% 3337 | -10/Subcaves | Core integrity fell below 20% 3351 | -10/Subcaves | Destroyed by G-34 Mercenary with Small Laser Last Messages --------------- 03119_ G-34 Mercenary destroyed. 03124_ G-47 Trooper destroyed. 03125_ Acquired 59 matter. 03127_ System corrupted: Heat flow error (+181). 03128_ Sml. Laser fries itself beyond repair. 03130_ Acquired Lgt. Nuclear Core. 03131_ Acquired 41 matter. 03133_ Aluminum Leg fries itself beyond repair. 03136_ Particle Gun fries itself beyond repair. 03138_ Imp. Heat Sink fries itself beyond repair. 03149_ Subatomizers dissect the Sub. Power Source. 03194_ System corrupted: Energy discharge (-50). 03198_ Subatomizers dissect the Sub. Power Source. 03211_ System corrupted: Component data lost. 03304_ System corrupted: Autogun jammed. 03338_ Autogun destroyed. 03345_ G-47 Trooper destroyed. 03347_ Imp. Treads destroyed. 03349_ Acquired 45 matter. 03350_ Imp. Heat Sink fries itself beyond repair. Map ----- +----------------------------------------------------+ | ????????????????????????????#????####?## #?????? | | ????????????????????????????????### ## #??#??? | | ??????????????????????????????##?# ##????? | | ????????????????????????????????## ## # ###???? | | ???????????????????????????#???## ??#### ##???? | | ?????????????????????????? ### ?#### ##????? | | ???????????????????????????? ### ## #?????? | | ?????????????????????????#?#????# # ##????? | | ????????????????????????? ?????????# < #?????? | | ????????????????????????? ???#???#### #?????? | | ????????????????????????? ??????????# ##?????# | | ?????????????????? ? ???? ????????#?# ##??#??? | | ???????????????????????## ????###### ##????# | | ??????????????? ??????## ???### ## #????? | | ????????????? ??????# ##?# #???## | | ??????????? ????# #????# # #????? | | ??????????? ????# #?#?## # ### #????? | | ?????????? ??## ##### ### ##?##????? | | ?????????? #??# ## #### #??#??#?? | | ????????? ### # # ##???????? | | ????????????# ##???????? | | ?????????????# #????#??# | | ?????????????# ##### ###### ###???????? | | ???????????## #???###????###?????????? | | ??????????# ## *###????????????#???????? | | ?????????? ??## @ ##???????#????????????? | | ?????????? ????### g #???????##????????? | | ???????????# ### ??????## #???#?#??????????? | | ???????????#????#????#??? #?#?????????????? | | ???????????????#????????? #????#??????????? | | ????????????????????????? #?????????????#? | | ????????????????????????? #???#??????#??? | | ???????????????????????? ### ????????????? | | ????????????????????????#???# ???????????? | | ?????????????????????????????# #??????????? | | ??????????????????????????????## #???????????? | | ????????????? ??????? ?????????? ##???????????? | | ???????????????????????????????#? #?????????????? | | ?????????????????????????#???????????????????????? | | ?????????????????????????#???????????????????????? | | ?????????????????????????????????????????????????? | | ?????????????????????????????????????????????????? | | ?????????????????????????????????????????????????? | | ?????????????????????????????????????????????????? | | ?????????????????????????????????????????????????? | | ?????????????????????????????????????????????????? | | ?????????????????????????????????????????????????? | | ?????????????????????????????????????????????????? | | ?????????????????????????????????????????????????? | | ?????????????????????????????????????????????????? | +----------------------------------------------------+ Best States ------------- Heat Dissipation 25 Energy Generation 10 Energy Capacity 250 Matter Stores 300 Matter Capacity 300 Sight Range 16 Terrain Scan Range 16 Terrain Scan Density 10 Evasion (%) 45 Recoil Reduction 2 Item Schematics ----------------- Tractor Beam | -10/Materials | Hacked Robot Schematics ------------------ None Fabricated ------------ Nothing Alien Tech Used ----------------- None Achievements -------------- None Challenges ------------ None Game ------ Seed GravmagDrainedNukerbomber Manual? 0 Play Time 00:17:46 Cumulative 45.1 hours Start 2024.09.10 @ 19:44:27 End 2024.09.10 @ 20:00:49 Sessions 1 Manual Loads 0 Difficulty Rogue Special Mode None Game No. 63 Rogue 63 Adventurer 0 Explorer 0 Win Type - Total 0 Types 0/0/0/0/0/0/0/0/0 Lore% 11 Gallery% 42 Achievement% 33 Wizard Run 0 Options --------- Layout 0 ASCII 0 Keyboard 0 Movement Mouse Keybinds 1 Fullscreen 1 Font 18/TerminusBold Map View 76x50 Zoom Use 0% Tactical HUD 1 Map Filters NONE Filters NONE Steam 1 RUN: 4e82f8ab-d40c-47f9-b204-a4f8fb17db14